fUST/lending_fUST_20250419
["ID","MTS","AMOUNT","RATE_DAILY","PERIOD"]
[358370844,1745008232393,-500.0,0.00018474,2]
[358370845,1745008232402,-500.0,0.00018474,2]
[358370846,1745008232412,-500.0,0.00018474,2]
[358370847,1745008232421,-500.0,0.00018474,2]
[358370848,1745008232430,-500.0,0.00018474,2]
[358370849,1745008232440,-500.0,0.00018474,2]
[358370850,1745008232449,-500.0,0.00018474,2]
[358370851,1745008232458,-500.0,0.00018474,2]
[358370852,1745008232468,-500.0,0.00018474,2]
[358370853,1745008232477,-500.0,0.00018474,2]
[358370854,1745008232486,-500.0,0.00018474,2]
[358370855,1745008232496,-500.0,0.00018474,2]
[358370856,1745008232505,-500.0,0.00018474,2]
[358370857,1745008232514,-500.0,0.00018474,2]
[358370858,1745008232523,-500.0,0.00018474,2]
[358370859,1745008232533,-500.0,0.00018474,2]
[358370860,1745008232543,-416.36408281,0.00018474,2]
[358370861,1745008232555,-83.63591719,0.00018474,2]
[358370862,1745008232565,-500.0,0.00018474,2]
[358370863,1745008232574,-500.0,0.00018474,2]
[358370864,1745008232583,-500.0,0.00018474,2]
[358370865,1745008232593,-500.0,0.00018474,2]
[358370866,1745008232602,-500.0,0.00018474,2]
[358370867,1745008232611,-500.0,0.00018474,2]
[358370868,1745008232621,-500.0,0.00018474,2]
[358370869,1745008232630,-500.0,0.00018474,2]
[358370870,1745008232818,-500.0,0.00018474,2]
[358370871,1745008232828,-536.11694508,0.00018474,2]
[358370872,1745008232837,-500.0,0.00018474,2]
[358370873,1745008232847,-500.0,0.00018474,2]
[358370874,1745008232856,-620.0,0.00018474,2]
[358370875,1745008232866,-825.61453089,0.00018474,2]
[358370876,1745008232875,-825.61453089,0.00018474,2]
[358370877,1745008232884,-825.61453089,0.00018474,2]
[358370878,1745008232893,-825.61453089,0.00018474,2]
[358370879,1745008232902,-825.61453089,0.00018474,2]
[358370880,1745008232912,-825.61453089,0.00018474,2]
[358370881,1745008232921,-825.61453089,0.00018474,2]
[358370882,1745008232930,-825.61453089,0.00018474,2]
[358370883,1745008232940,-825.61453089,0.00018474,2]
[358370884,1745008232949,-825.61453089,0.00018474,2]
[358370885,1745008232958,-825.61453089,0.00018474,2]
[358370886,1745008232968,-825.61453089,0.00018474,2]
[358370887,1745008232977,-825.61453089,0.00018474,2]
[358370888,1745008232986,-825.61453089,0.00018474,2]
[358370889,1745008232995,-825.61453089,0.00018474,2]
[358370890,1745008233004,-825.61453089,0.00018474,2]
[358370891,1745008233013,-825.61453089,0.00018474,2]
[358370892,1745008233022,-825.61453089,0.00018474,2]
[358370893,1745008233032,-825.61453089,0.00018474,2]
[358370894,1745008233041,-825.61453089,0.00018474,2]
[358370895,1745008233051,-825.61453089,0.00018474,2]
[358370896,1745008233061,-825.61453089,0.00018474,2]
[358370897,1745008233070,-825.61453089,0.00018474,2]
[358370898,1745008233079,-825.61453089,0.00018474,2]
[358370899,1745008233090,-825.61453089,0.00018474,2]
[358370900,1745008233100,-825.61453089,0.00018474,2]
[358370901,1745008233109,-825.61453089,0.00018474,2]
[358370902,1745008233119,-825.61453089,0.00018474,2]
[358370903,1745008233128,-825.61453089,0.00018474,2]
[358370904,1745008233138,-825.61453089,0.00018474,2]
[358370905,1745008233147,-825.61453089,0.00018474,2]
[358370906,1745008233157,-825.61453089,0.00018474,2]
[358370907,1745008233166,-825.61453089,0.00018474,2]
[358370908,1745008233175,-825.61453089,0.00018474,2]
[358370909,1745008233184,-825.61453089,0.00018474,2]
[358370910,1745008233193,-825.61453089,0.00018474,2]
[358370911,1745008233201,-825.61453089,0.00018474,2]
[358370912,1745008233209,-825.61453089,0.00018474,2]
[358370913,1745008233218,-825.61453089,0.00018474,2]
[358370914,1745008233227,-825.61453089,0.00018474,2]
[358370915,1745008233236,-825.61453089,0.00018474,2]
[358370916,1745008233245,-821.11117889,0.00018474,2]
[358370917,1745008233254,-821.11117889,0.00018474,2]
[358370918,1745008233264,-821.11117889,0.00018474,2]
[358370919,1745008233274,-821.11117889,0.00018474,2]
[358370920,1745008233283,-821.11117889,0.00018474,2]
[358370921,1745008233292,-821.11117889,0.00018474,2]
[358370922,1745008233301,-821.11117889,0.00018474,2]
[358370923,1745008233311,-821.11117889,0.00018474,2]
[358370924,1745008233320,-821.11117889,0.00018474,2]
[358370925,1745008233330,-821.11117889,0.00018474,2]
[358370926,1745008233342,-821.11117889,0.00018474,2]
[358370927,1745008233351,-500.0,0.000185,2]
[358370928,1745008233361,-500.67474896,0.000185,2]
[358370929,1745008233370,-500.0,0.000185,2]
[358370930,1745008233380,-243.32056446,0.00018812,2]
[358370931,1745008233390,-243.32056446,0.00019224,2]
[358370932,1745008233399,-6118.68862442,0.00019379,2]
[358370933,1745008233411,-487.31355088,0.00019379,2]
[358370935,1745008238255,-788.353818,0.00019379,2]
[358370937,1745008238265,-500.0,0.00019414,2]
[358370938,1745008238274,-197.08685663,0.00019414,2]
[358370939,1745008238283,-500.0,0.00019414,2]
[358370940,1745008238293,-130.46107893,0.00019414,2]
[358370941,1745008238305,-369.53892107,0.00019414,2]
[358370942,1745008238315,-500.0,0.00019414,2]
[358370943,1745008238326,-500.0,0.00019414,2]
[358370944,1745008238337,-331.06463743,0.00019414,2]
[358370945,1745008238366,-168.93536257,0.00019414,2]
[358370946,1745008238375,-500.0,0.00019414,2]
[358370947,1745008238385,-500.0,0.00019414,2]
[358370948,1745008238394,-378.64047077,0.00019414,2]
[358370949,1745008238473,-224.15140719,0.00019414,2]
[358370950,1745008238483,-500.0,0.00019414,2]
[358370951,1745008238492,-500.0,0.00019414,2]
[358370952,1745008238501,-558.37208153,0.00019414,2]
[358370953,1745008238511,-500.0,0.00019414,2]
[358370954,1745008238520,-500.0,0.00019414,2]
[358370955,1745008238530,-500.0,0.00019414,2]
[358370956,1745008238540,-500.0,0.00019414,2]
[358370957,1745008238550,-500.0,0.00019414,2]
[358370958,1745008238559,-500.0,0.00019414,2]
[358370959,1745008238569,-212.08627103,0.00019414,2]
[358370960,1745008238579,-500.0,0.00019414,2]
[358370961,1745008238589,-500.0,0.00019414,2]
[358370962,1745008238598,-500.0,0.00019414,2]
[358370963,1745008238608,-500.0,0.00019414,2]
[358370964,1745008238618,-340.06276091,0.00019414,2]
[358370965,1745008238627,-500.66529769,0.00019414,2]
[358370966,1745008238637,-500.0,0.00019414,2]
[358370967,1745008238647,-501.26066108,0.00019414,2]
[358370968,1745008238657,-300.0,0.00019414,2]
[358370969,1745008238666,-500.0,0.00019414,2]
[358370970,1745008238676,-504.69515223,0.00019414,2]
[358370971,1745008238686,-500.0,0.00019414,2]
[358370972,1745008238695,-500.0,0.00019414,2]
[358370973,1745008238705,-375.05775775,0.00019414,2]
[358370974,1745008238715,-394.45066866,0.00019414,2]
[358370975,1745008238724,-500.0,0.00019414,2]
[358370976,1745008238734,-503.73214041,0.00019414,2]
[358370977,1745008238744,-300.46712725,0.00019414,2]
[358370978,1745008238754,-500.0,0.00019414,2]
[358370979,1745008238764,-500.0,0.00019414,2]
[358370980,1745008238775,-243.32056446,0.00019635,2]
[358370981,1745008238787,-233.21433484,0.00019717,2]
[358370982,1745008238797,-1359.06582954,0.000199,2]
[358370983,1745008238806,-243.32056446,0.00020047,2]
[358370984,1745008238816,-151.0,0.00020057,2]
[358370985,1745008238826,-37003.97927005,0.00020069,2]
[358370986,1745008238836,-11157.33545323,0.00020069,3]
[358370987,1745008238845,-160.0,0.00020069,3]
[358370988,1745008238855,-839.29847495,0.00020069,3]
[358370989,1745008238865,-160.0,0.00020069,3]
[358370990,1745008238874,-160.0,0.00020069,3]
[358370991,1745008238884,-92756.40110484,0.00020069,2]
[358370992,1745008238898,-239020.37596889,0.00020069,2]
[358370993,1745008238912,-38223.22292627,0.00020069,2]
[358370994,1745008238922,-155.36862483,0.00020136,5]
[358370995,1745008238931,-420.0,0.00020146,2]
[358370996,1745008238940,-160.0,0.00020173,2]
[358370997,1745008238950,-160.0,0.00020173,2]
[358370998,1745008238960,-160.0,0.00020173,2]
[358370999,1745008238970,-839.29847495,0.00020173,2]
[358371000,1745008238979,-12559.7366029,0.00020173,2]
[358371001,1745008238989,-420.0,0.00020245,2]
[358371002,1745008238998,-1359.06582936,0.00020693,2]
[358371003,1745008239007,-981.6506129,0.00020735,2]
[358371004,1745008239017,-600.0,0.00021058,2]
[358371005,1745008239026,-2248.0,0.00021476,2]
[358371006,1745008239036,-707.0,0.00021476,2]
[358371007,1745008239045,-1359.06582936,0.00021486,3]
[358371008,1745008239055,-216.48,0.00021546,2]
[358371009,1745008239065,-453.304859,0.00021697,2]
[358371010,1745008239074,-286.16,0.000217,2]
[358371011,1745008239084,-420.40766787,0.00021751,2]
[358371012,1745008239094,-160.0,0.00021751,2]
[358371013,1745008239103,-160.0,0.00021751,2]
[358371014,1745008239113,-12500.0,0.00021882,2]
[358371015,1745008239122,-12500.0,0.00021891,2]
[358371016,1745008239132,-12500.0,0.00021899,2]
[358371017,1745008239141,-200.0,0.000219,2]
[358371018,1745008239151,-200.0,0.000219,2]
[358371019,1745008239160,-151.0,0.000219,120]
[358371020,1745008239170,-316.0,0.000219,2]
[358371021,1745008239179,-12500.0,0.00021908,2]
[358371022,1745008239189,-222.21492129,0.00021917,2]
[358371023,1745008239198,-500.0,0.00021917,2]
[358371024,1745008239207,-500.0,0.00021917,2]
[358371025,1745008239217,-528.84650994,0.00021917,2]
[358371026,1745008239226,-151.0,0.00021917,2]
[358371027,1745008239235,-151.0,0.00021917,2]
[358371028,1745008239244,-500.0,0.00021917,2]
[358371029,1745008239253,-553.75,0.00021917,2]
[358371030,1745008239262,-153.178815,0.00021917,2]
[358371031,1745008239271,-500.0,0.00021917,2]
[358371032,1745008239280,-500.0,0.00021917,2]
[358371033,1745008239289,-500.0,0.00021917,2]
[358371034,1745008239299,-500.0,0.00021917,2]
[358371035,1745008239309,-500.0,0.00021917,2]
[358371036,1745008239318,-1417.13,0.00021917,2]
[358371037,1745008239327,-500.0,0.00021917,2]
[358371038,1745008239337,-1103.12,0.00021917,2]
[358371039,1745008239347,-644.81,0.00021917,2]
[358371040,1745008239357,-500.0,0.00021917,2]
[358371041,1745008239366,-565.8108528,0.00021917,2]
[358371042,1745008239376,-500.0,0.00021917,2]
[358371043,1745008239386,-500.0,0.00021917,2]
[358371044,1745008239396,-500.0,0.00021917,2]
[358371045,1745008239405,-500.0,0.00021917,2]
[358371046,1745008239416,-500.0,0.00021917,2]
[358371047,1745008239426,-500.0,0.00021917,2]
[358371048,1745008239436,-694.39,0.00021917,2]
[358371049,1745008239445,-881.88,0.00021917,2]
[358371050,1745008239454,-500.0,0.00021917,2]
[358371051,1745008239464,-500.0,0.00021917,2]
[358371052,1745008239473,-1367.66,0.00021917,2]
[358371053,1745008239483,-151.0,0.00021917,2]
[358371054,1745008239492,-500.0,0.00021917,2]
[358371055,1745008239502,-500.0,0.00021917,2]
[358371056,1745008239512,-500.0,0.00021917,2]
[358371057,1745008239523,-500.0,0.00021917,2]
[358371058,1745008239532,-500.0,0.00021917,2]
[358371059,1745008239686,-547.85,0.00021917,2]
[358371060,1745008239697,-500.0,0.00021917,2]
[358371061,1745008239706,-500.0,0.00021917,2]
[358371062,1745008239716,-500.0,0.00021917,2]
[358371063,1745008239725,-500.0,0.00021917,2]
[358371064,1745008239735,-500.0,0.00021917,2]
[358371065,1745008239744,-500.0,0.00021917,2]
[358371066,1745008239753,-508.62,0.00021917,2]
[358371067,1745008239763,-500.0,0.00021917,2]
[358371068,1745008239772,-500.0,0.00021917,2]
[358371069,1745008239781,-500.0,0.00021917,2]
[358371070,1745008239791,-500.0,0.00021917,2]
[358371071,1745008239801,-461.46163239,0.00021917,2]
[358371072,1745008239815,-38.53836761,0.00021917,2]
[358371073,1745008239825,-500.0,0.00021917,2]
[358371074,1745008239834,-500.0,0.00021917,2]
[358371075,1745008239844,-586.58,0.00021917,2]
[358371076,1745008239853,-500.0,0.00021917,2]
[358371077,1745008239863,-500.0,0.00021917,2]
[358371079,1745008239872,-1036.30223239,0.00021917,2]
[358371091,1745008242585,-323.25776761,0.00021917,2]
[358371092,1745008242595,-500.0,0.00021917,2]
[358371093,1745008242605,-153.71887,0.00021917,2]
[358371098,1745008242755,-168.54858376,0.00021917,2]
[358371099,1745008242765,-669.9,0.00021917,2]
[358371100,1745008242775,-12500.0,0.00021917,2]
[358371101,1745008242784,-500.0,0.00021917,2]
[358371102,1745008242794,-500.0,0.00021917,2]
[358371103,1745008242804,-500.0,0.00021917,2]
[358371104,1745008242814,-500.0,0.00021917,2]
[358371105,1745008242823,-509.61,0.00021917,2]
[358371106,1745008242833,-500.0,0.00021917,2]
[358371107,1745008242843,-500.0,0.00021917,2]
[358371108,1745008242853,-500.0,0.00021917,2]
[358371109,1745008242862,-500.0,0.00021917,2]
[358371110,1745008242872,-500.0,0.00021917,2]
[358371111,1745008242881,-500.0,0.00021917,2]
[358371112,1745008242891,-500.0,0.00021917,2]
[358371113,1745008242900,-500.0,0.00021917,2]
[358371114,1745008242910,-500.0,0.00021917,2]
[358371115,1745008242919,-500.0,0.00021917,2]
[358371116,1745008242929,-500.0,0.00021917,2]
[358371117,1745008242939,-500.0,0.00021917,2]
[358371119,1745008242949,-500.0,0.00021917,2]
[358371120,1745008242959,-500.0,0.00021917,2]
[358371121,1745008242969,-500.0,0.00021917,2]
[358371122,1745008242978,-277.25150718,0.00021917,2]
[358371123,1745008242988,-500.0,0.00021917,2]
[358371124,1745008242998,-500.0,0.00021917,2]
[358371125,1745008243008,-500.0,0.00021917,2]
[358371126,1745008243017,-500.0,0.00021917,2]
[358371127,1745008243027,-500.0,0.00021917,2]
[358371128,1745008243037,-500.0,0.00021917,2]
[358371129,1745008243047,-500.0,0.00021917,2]
[358371130,1745008243056,-500.0,0.00021917,2]
[358371131,1745008243066,-500.0,0.00021917,2]
[358371132,1745008243076,-500.0,0.00021917,2]
[358371133,1745008243086,-500.0,0.00021917,2]
[358371134,1745008243096,-500.0,0.00021917,2]
[358371135,1745008243106,-2.77023252,0.00021917,2]
[358371136,1745008243225,-544.0,0.00021476,2]
[358371137,1745008243234,-497.22976748,0.00021917,2]
[358371138,1745008243244,-500.0,0.00021917,2]
[358371139,1745008243253,-500.0,0.00021917,2]
[358371140,1745008243263,-500.0,0.00021917,2]
[358371141,1745008243272,-675.84,0.00021917,2]
[358371142,1745008243282,-1230.8,0.00021917,2]
[358371144,1745008243291,-500.0,0.00021917,2]
[358371146,1745008243301,-500.0,0.00021917,2]
[358371148,1745008243310,-500.0,0.00021917,2]
[358371150,1745008243319,-500.0,0.00021917,2]
[358371152,1745008243329,-500.0,0.00021917,2]
[358371154,1745008243341,-500.0,0.00021917,2]
[358371156,1745008243350,-500.0,0.00021917,2]
[358371157,1745008243360,-500.0,0.00021917,2]
[358371158,1745008243370,-500.0,0.00021917,2]
[358371159,1745008243379,-500.0,0.00021917,2]
[358371160,1745008243389,-500.0,0.00021917,2]
[358371161,1745008243398,-500.0,0.00021917,2]
[358371162,1745008243407,-567.88,0.00021917,2]
[358371163,1745008243419,-500.0,0.00021917,2]
[358371164,1745008243428,-500.0,0.00021917,2]
[358371165,1745008243438,-500.0,0.00021917,2]
[358371166,1745008243447,-500.0,0.00021917,2]
[358371167,1745008243456,-500.0,0.00021917,2]
[358371168,1745008243466,-500.0,0.00021917,2]
[358371169,1745008243475,-500.0,0.00021917,2]
[358371170,1745008243485,-500.0,0.00021917,2]
[358371171,1745008243496,-500.0,0.00021917,2]
[358371172,1745008243506,-500.0,0.00021917,2]
[358371173,1745008243515,-500.0,0.00021917,2]
[358371174,1745008243525,-500.0,0.00021917,2]
[358371175,1745008243535,-500.0,0.00021917,2]
[358371176,1745008243544,-500.0,0.00021917,2]
[358371177,1745008243554,-740.3,0.00021917,2]
[358371178,1745008243563,-500.0,0.00021917,2]
[358371179,1745008243573,-500.0,0.00021917,2]
[358371180,1745008243583,-500.0,0.00021917,2]
[358371181,1745008243592,-500.0,0.00021917,2]
[358371182,1745008243602,-500.0,0.00021917,2]
[358371183,1745008243611,-500.0,0.00021917,2]
[358371184,1745008243621,-500.0,0.00021917,2]
[358371185,1745008243630,-500.0,0.00021917,2]
[358371186,1745008243639,-500.0,0.00021917,2]
[358371187,1745008243649,-500.0,0.00021917,2]
[358371188,1745008243658,-500.0,0.00021917,2]
[358371189,1745008243667,-500.0,0.00021917,2]
[358371190,1745008243676,-500.0,0.00021917,2]
[358371191,1745008243686,-570.46,0.00021917,2]
[358371192,1745008243695,-500.0,0.00021917,2]
[358371193,1745008243705,-562.71,0.00021917,2]
[358371194,1745008243714,-500.0,0.00021917,2]
[358371195,1745008243723,-500.0,0.00021917,2]
[358371196,1745008243733,-981.0,0.00021917,2]
[358371197,1745008243743,-619.8,0.00021917,2]
[358371198,1745008243753,-500.0,0.00021917,2]
[358371199,1745008243762,-500.0,0.00021917,2]
[358371200,1745008243772,-500.0,0.00021917,2]
[358371201,1745008243781,-500.0,0.00021917,2]
[358371202,1745008243791,-500.0,0.00021917,2]
[358371203,1745008243800,-500.0,0.00021917,2]
[358371204,1745008243810,-500.0,0.00021917,2]
[358371205,1745008243819,-500.0,0.00021917,2]
[358371206,1745008243829,-500.0,0.00021917,2]
[358371207,1745008243839,-500.0,0.00021917,2]
[358371208,1745008243848,-859.41,0.00021917,2]
[358371209,1745008243858,-500.0,0.00021917,2]
[358371210,1745008243867,-500.0,0.00021917,2]
[358371211,1745008243876,-500.0,0.00021917,2]
[358371212,1745008243886,-500.96831791,0.00021917,2]
[358371213,1745008243896,-500.0,0.00021917,2]
[358371214,1745008243905,-500.0,0.00021917,2]
[358371215,1745008243915,-595.91,0.00021917,2]
[358371216,1745008243925,-500.0,0.00021917,2]
[358371217,1745008243935,-921.51,0.00021917,2]
[358371218,1745008243944,-500.0,0.00021917,2]
[358371219,1745008243954,-500.0,0.00021917,2]
[358371220,1745008243964,-500.0,0.00021917,2]
[358371221,1745008243973,-536.04922111,0.00021917,2]
[358371222,1745008243983,-949.47,0.00021917,2]
[358371223,1745008243992,-500.0,0.00021917,2]
[358371224,1745008244002,-500.0,0.00021917,2]
[358371225,1745008244012,-1253.34,0.00021917,2]
[358371226,1745008244021,-1131.65,0.00021917,2]
[358371227,1745008244031,-500.0,0.00021917,2]
[358371228,1745008244041,-500.0,0.00021917,2]
[358371229,1745008244050,-500.0,0.00021917,2]
[358371230,1745008244060,-500.0,0.00021917,2]
[358371231,1745008244069,-1780.89,0.00021917,2]
[358371232,1745008244079,-500.0,0.00021917,2]
[358371233,1745008244088,-500.0,0.00021917,2]
[358371234,1745008244098,-916.88,0.00021917,2]
[358371235,1745008244107,-500.0,0.00021917,2]
[358371236,1745008244117,-500.0,0.00021917,2]
[358371237,1745008244126,-500.0,0.00021917,2]
[358371238,1745008244136,-500.0,0.00021917,2]
[358371239,1745008244145,-500.0,0.00021917,2]
[358371240,1745008244154,-500.0,0.00021917,2]
[358371241,1745008244164,-500.0,0.00021917,2]
[358371242,1745008244174,-296.80692892,0.00021917,2]
[358371243,1745008244183,-654.59,0.00021917,2]
[358371244,1745008244193,-500.0,0.00021917,2]
[358371245,1745008244202,-500.0,0.00021917,2]
[358371246,1745008244212,-89.54137368,0.00021917,2]
[358371247,1745008244229,-410.45862632,0.00021917,2]
[358371248,1745008244239,-500.0,0.00021917,2]
[358371249,1745008244248,-500.0,0.00021917,2]
[358371250,1745008244258,-500.0,0.00021917,2]
[358371251,1745008244268,-500.0,0.00021917,2]
[358371252,1745008244277,-500.0,0.00021917,2]
[358371253,1745008244287,-553.21,0.00021917,2]
[358371254,1745008244296,-500.0,0.00021917,2]
[358371255,1745008244306,-500.0,0.00021917,2]
[358371256,1745008244316,-635.86,0.00021917,2]
[358371257,1745008244326,-500.0,0.00021917,2]
[358371258,1745008244336,-543.54,0.00021917,2]
[358371259,1745008244348,-500.0,0.00021917,2]
[358371260,1745008244358,-500.0,0.00021917,2]
[358371261,1745008244367,-500.0,0.00021917,2]
[358371262,1745008244376,-264.239673,0.00021917,2]
[358371263,1745008244386,-500.0,0.00021917,2]
[358371264,1745008244395,-500.0,0.00021917,2]
[358371265,1745008244405,-500.0,0.00021917,2]
[358371266,1745008244417,-500.0,0.00021917,2]
[358371267,1745008244427,-500.0,0.00021917,2]
[358371268,1745008244437,-500.0,0.00021917,2]
[358371269,1745008244447,-500.0,0.00021917,2]
[358371270,1745008244456,-500.0,0.00021917,2]
[358371271,1745008244466,-1035.83,0.00021917,2]
[358371272,1745008244476,-500.0,0.00021917,2]
[358371273,1745008244490,-359.92829819,0.00021917,2]
[358371274,1745008244500,-500.0,0.00021917,2]
[358371275,1745008244510,-500.0,0.00021917,2]
[358371276,1745008244519,-500.0,0.00021917,2]
[358371277,1745008244529,-500.0,0.00021917,2]
[358371278,1745008244539,-500.0,0.00021917,2]
[358371279,1745008244549,-500.0,0.00021917,2]
[358371280,1745008244559,-500.0,0.00021917,2]
[358371281,1745008244569,-151.0,0.00021917,2]
[358371282,1745008244579,-151.0,0.00021917,2]
[358371283,1745008244589,-151.0,0.00021917,2]
[358371284,1745008244599,-500.0,0.00021917,2]
[358371285,1745008244609,-500.0,0.00021917,2]
[358371286,1745008244618,-500.0,0.00021917,2]
[358371287,1745008244630,-1466.29,0.00021917,2]
[358371288,1745008244639,-825.26,0.00021917,2]
[358371289,1745008244649,-500.0,0.00021917,2]
[358371290,1745008244659,-522.08,0.00021917,2]
[358371291,1745008244669,-151.0,0.00021917,2]
[358371292,1745008244679,-500.0,0.00021917,2]
[358371293,1745008244688,-151.0,0.00021917,2]
[358371294,1745008244698,-151.0,0.00021917,2]
[358371295,1745008244708,-151.0,0.00021917,2]
[358371296,1745008244718,-500.0,0.00021917,2]
[358371297,1745008244728,-500.0,0.00021917,2]
[358371298,1745008244738,-3302.58,0.00021917,2]
[358371299,1745008244748,-500.0,0.00021917,2]
[358371300,1745008244757,-500.0,0.00021917,2]
[358371301,1745008244767,-500.0,0.00021917,2]
[358371302,1745008244777,-500.0,0.00021917,2]
[358371303,1745008244786,-1065.47,0.00021917,2]
[358371304,1745008244796,-500.0,0.00021917,2]
[358371305,1745008244806,-500.0,0.00021917,2]
[358371306,1745008244816,-500.0,0.00021917,2]
[358371307,1745008244827,-677.8,0.00021917,2]
[358371308,1745008244837,-617.85,0.00021917,2]
[358371309,1745008244847,-500.0,0.00021917,2]
[358371310,1745008244858,-772.48,0.00021917,2]
[358371311,1745008244868,-630.9,0.00021917,2]
[358371312,1745008244877,-500.0,0.00021917,2]
[358371313,1745008244887,-500.0,0.00021917,2]
[358371314,1745008244898,-500.0,0.00021917,2]
[358371315,1745008244908,-500.0,0.00021917,2]
[358371316,1745008244918,-634.12,0.00021917,2]
[358371317,1745008244928,-500.0,0.00021917,2]
[358371318,1745008244938,-500.0,0.00021917,2]
[358371319,1745008244950,-500.0,0.00021917,2]
[358371320,1745008244960,-615.55,0.00021917,2]
[358371321,1745008244970,-500.0,0.00021917,2]
[358371322,1745008244979,-1468.76,0.00021917,2]
[358371323,1745008244989,-500.0,0.00021917,2]
[358371324,1745008244999,-527.48,0.00021917,2]
[358371325,1745008245009,-500.0,0.00021917,2]
[358371326,1745008245019,-500.0,0.00021917,2]
[358371327,1745008245028,-500.0,0.00021917,2]
[358371328,1745008245038,-500.0,0.00021917,2]
[358371329,1745008245048,-524.73436463,0.00021917,2]
[358371330,1745008245058,-561.96574125,0.00021917,2]
[358371331,1745008245068,-500.0,0.00021917,2]
[358371332,1745008245077,-500.0,0.00021917,2]
[358371333,1745008245087,-502.89669881,0.00021917,2]
[358371334,1745008245098,-832.55,0.00021917,2]
[358371335,1745008245108,-528.3,0.00021917,2]
[358371336,1745008245118,-500.0,0.00021917,2]
[358371337,1745008245128,-500.0,0.00021917,2]
[358371338,1745008245137,-500.0,0.00021917,2]
[358371339,1745008245147,-500.0,0.00021917,2]
[358371340,1745008245156,-796.49,0.00021917,2]
[358371341,1745008245165,-558.55,0.00021917,2]
[358371342,1745008245174,-500.0,0.00021917,2]
[358371343,1745008245184,-500.0,0.00021917,2]
[358371344,1745008245194,-725.36,0.00021917,2]
[358371345,1745008245203,-500.0,0.00021917,2]
[358371346,1745008245213,-1292.07,0.00021917,2]
[358371347,1745008245223,-151.0,0.00021917,2]
[358371348,1745008245232,-151.0,0.00021917,2]
[358371349,1745008245242,-151.0,0.00021917,2]
[358371350,1745008245251,-151.0,0.00021917,2]
[358371351,1745008245261,-151.0,0.00021917,2]
[358371352,1745008245270,-151.0,0.00021917,2]
[358371353,1745008245279,-500.0,0.00021917,2]
[358371354,1745008245289,-151.0,0.00021917,2]
[358371355,1745008245299,-500.0,0.00021917,2]
[358371356,1745008245309,-500.0,0.00021917,2]
[358371357,1745008245319,-500.0,0.00021917,2]
[358371358,1745008245328,-500.0,0.00021917,2]
[358371359,1745008245339,-500.0,0.00021917,2]
[358371360,1745008245350,-500.0,0.00021917,2]
[358371361,1745008245359,-500.0,0.00021917,2]
[358371362,1745008245369,-922.3,0.00021917,2]
[358371363,1745008245379,-500.0,0.00021917,2]
[358371364,1745008245390,-500.0,0.00021917,2]
[358371365,1745008245400,-500.0,0.00021917,2]
[358371366,1745008245410,-500.0,0.00021917,2]
[358371367,1745008245422,-500.0,0.00021917,2]
[358371368,1745008245433,-262.83281415,0.00021917,2]
[358371369,1745008245586,-500.0,0.00021917,2]